bitfinex/quotes_ETHUSD_20240602
["timestamp","ask_amount","ask_price","bid_price","bid_amount"]
[1717368793636,2.64607,3779.2,3779.1,0.04530849]
[1717368793815,2.64607,3779.2,3778.8,0.479]
[1717368794022,2.64607,3779.2,3779.1,0.04529945]
[1717368794253,2.64607,3779.2,3778.8,0.479]
[1717368794448,2.64607,3779.2,3779.1,0.04529945]
[1717368794947,2.64607,3779.2,3778.6,2.769]
[1717368795153,2.64607,3779.2,3779.1,0.04529945]
[1717368795355,2.64607,3779.2,3778.6,3.31056]
[1717368795647,2.64607,3779.2,3779.1,0.04530849]
[1717368795849,2.64607,3779.2,3778.8,0.479]
[1717368796049,2.64607,3779.2,3779.1,0.04530849]
[1717368796211,2.64607,3779.2,3778.8,0.479]
[1717368796416,2.64607,3779.2,3779.1,0.04530849]
[1717368796650,2.64607,3779.2,3778.8,0.810056]
[1717368796853,2.64607,3779.2,3779.1,0.04530849]
[1717368797355,2.64607,3779.2,3778.8,0.810056]
[1717368797530,2.64607,3779.2,3779.1,0.04530849]
[1717368797733,2.64607,3779.2,3778.8,0.479]
[1717368797927,2.64607,3779.2,3779.1,0.04530849]
[1717368798258,2.64607,3779.2,3778.7,0.479]
[1717368798433,2.64607,3779.2,3779.1,0.04530849]
[1717368798632,2.64607,3779.2,3778.7,0.479]
[1717368798831,2.64607,3779.2,3779.1,0.04530849]
[1717368799041,2.64607,3779.2,3778.9,0.479]
[1717368799241,2.64607,3779.2,3779.1,0.04530849]
[1717368799420,2.64607,3779.2,3778.9,0.479]
[1717368799620,2.64607,3779.2,3779.1,0.04530849]
[1717368799831,2.64586,3779.5,3778.9,0.479]
[1717368800022,2.64586,3779.5,3779.1,0.04530849]
[1717368800218,2.64586,3779.5,3779.0,0.04523166]
[1717368800453,2.64586,3779.5,3778.9,0.479]
[1717368800667,2.64586,3779.5,3779.1,0.04523166]
[1717368800870,9.5766,3779.8,3779.4,0.479]
[1717368800871,7.28,3779.8,3779.4,0.479]
[1717368801023,2.2831,3780.2,3779.4,0.479]
[1717368801227,2.2831,3780.2,3779.5,0.04508704]
[1717368801528,0.57193878,3780.1,3779.4,0.479]
[1717368801756,0.57193878,3780.1,3779.4,0.77457]
[1717368802454,3.21737878,3780.1,3779.4,0.77457]
[1717368802624,2.64544,3780.1,3779.4,0.77457]
[1717368805179,9.92529,3780.3,3780.0,0.479]
[1717368805342,9.92529,3780.3,3779.8,0.479]
[1717368805867,9.92529,3780.3,3779.9,0.04482264]
[1717368806174,9.92529,3780.3,3779.8,0.479]
[1717368806367,9.92529,3780.3,3780.0,0.04482264]
[1717368806665,9.92529,3780.3,3779.8,0.479]
[1717368807172,9.92529,3780.3,3779.9,0.04482264]
[1717368808867,2.64529,3780.3,3779.9,0.04482264]
[1717368813048,3.0,3780.6,3780.2,0.479]
[1717368813277,3.0,3780.6,3780.4,0.479]
[1717368813484,3.0,3780.6,3780.3,0.04426688]
[1717368813641,2.64507,3780.7,3780.3,0.29649669]
[1717368813850,2.64507,3780.7,3780.4,0.52326688]
[1717368814173,2.64507,3780.7,3780.4,0.479]
[1717368815566,2.64507,3780.7,3780.5,0.04426688]
[1717368815988,2.64507,3780.7,3780.2,0.479]
[1717368816480,2.64507,3780.7,3780.3,0.04426688]
[1717368816881,2.64507,3780.7,3780.2,0.479]
[1717368817097,2.64507,3780.7,3780.4,0.04426688]
[1717368817398,2.64507,3780.7,3780.5,0.04426688]
[1717368817697,2.64507,3780.7,3780.2,1.03562]
[1717368821101,2.64507,3780.7,3780.4,0.479]
[1717368823000,2.64507,3780.7,3780.5,2.2649]
[1717368823268,2.64507,3780.7,3780.5,2.30916688]
[1717368824180,2.64507,3780.7,3780.5,2.64364557]
[1717368825589,12.78,3781.3,3780.6,0.479]
[1717368825590,2.64481,3781.0,3780.6,0.479]
[1717368825920,2.64481,3781.0,3780.5,2.2649]
[1717368827413,9.78,3781.3,3780.5,2.2649]
[1717368827612,9.78,3781.3,3780.6,0.22649]
[1717368827613,12.42464,3781.3,3780.6,0.22649]
[1717368828002,12.42464,3781.3,3780.5,2.7439]
[1717368828003,14.76004,3781.3,3780.5,2.7439]
[1717368828194,14.76004,3781.3,3780.7,0.04405008]
[1717368828389,14.76004,3781.3,3780.5,2.7439]
[1717368829191,14.76004,3781.3,3780.4,2.64515]
[1717368829392,2.64479,3781.1,3780.3,2.4912]
[1717368829593,2.64479,3781.1,3780.0,5.59993]
[1717368829594,2.64489,3780.9,3780.0,5.59993]
[1717368830101,2.64489,3780.9,3780.1,0.04405008]
[1717368831923,2.64489,3780.9,3780.0,5.59993]
[1717368832240,2.64489,3780.9,3780.1,0.04405008]
[1717368832714,2.64489,3780.9,3780.0,5.59993]
[1717368832915,2.64507,3780.7,3780.1,0.04366165]
[1717368837794,2.64507,3780.7,3780.1,0.52266165]
[1717368843381,2.64507,3780.7,3780.3,0.479]
[1717368843874,2.64507,3780.7,3780.4,0.04354874]
[1717368847783,2.64481,3781.0,3780.4,0.04354874]
[1717368848282,2.64481,3781.0,3780.3,0.479]
[1717368848594,2.64481,3781.0,3780.5,0.479]
[1717368859189,9.78,3781.3,3780.4,2.2642]
[1717368859390,9.78,3781.3,3780.8,2.2642]
[1717368859690,9.78,3781.3,3780.4,2.7432]
[1717368859691,2.64466,3781.2,3780.4,2.7432]
[1717368860012,0.57173764,3781.1,3780.4,2.7432]
[1717368861442,2.64481,3781.0,3780.4,3.282053]
[1717368868528,2.64481,3781.0,3780.6,0.479]
[1717368869426,14.79239,3781.3,3780.6,0.479]
[1717368869599,0.5717507,3781.2,3780.8,0.479]
[1717368870844,0.5717507,3781.2,3781.0,0.479]
[1717368871015,0.5717507,3781.2,3780.7,0.479]
[1717368872656,0.5717507,3781.2,3780.9,0.479]
[1717368874049,2.64475,3781.1,3780.5,0.5448213]
[1717368874255,2.64475,3781.1,3780.6,0.479]
[1717368874430,0.57176745,3781.0,3780.6,0.52234104]
[1717368875246,0.57176745,3781.0,3780.6,0.04334104]
[1717368875650,0.57176745,3781.0,3780.5,0.479]
[1717368875970,2.64487,3780.9,3780.1,5.04382]
[1717368876118,4.98467,3780.9,3780.2,0.04194071]
[1717368876322,6.259037,3780.9,3780.2,0.04194071]
[1717368876541,6.259037,3780.9,3780.1,0.479]
[1717368876741,2.64502,3780.7,3780.3,0.479]
[1717368877350,2.64502,3780.7,3780.4,0.04194071]
[1717368884971,2.64502,3780.7,3780.3,0.479]
[1717368887444,2.64502,3780.7,3780.4,0.04097867]
[1717368887633,2.3398,3780.9,3780.4,0.04097867]
[1717368888028,2.6448,3781.1,3780.3,0.479]
[1717368888379,0.57176858,3781.0,3780.3,0.479]
[1717368890777,0.57178184,3781.0,3780.3,0.479]
[1717368891334,0.57178184,3781.0,3780.5,0.479]
[1717368891532,2.6448,3781.1,3780.6,0.04103737]
[1717368891756,2.6448,3781.1,3780.5,0.479]
[1717368891963,2.6448,3781.1,3780.6,0.04103737]
[1717368892178,7.28,3781.2,3780.5,3.12414]
[1717368892386,0.57175739,3781.1,3780.9,0.479]
[1717368892532,2.5,3781.3,3781.0,0.04103737]
[1717368892736,2.5,3781.3,3780.9,0.479]
[1717368892737,0.57174069,3781.2,3780.9,0.479]
[1717368892937,0.57174069,3781.2,3780.7,0.479]
[1717368893137,0.57174069,3781.2,3780.7,1.027814]
[1717368894285,0.57173984,3781.2,3780.7,1.027814]
[1717368894635,0.57173984,3781.2,3780.9,0.479]
[1717368895554,2.5,3781.3,3780.9,0.479]
[1717368896690,2.5,3781.3,3781.2,0.479]
[1717368896871,2.5,3781.3,3781.2,2.64466]
[1717368897207,2.5,3781.3,3781.2,3.16448064]
[1717368902686,2.5,3781.3,3781.2,2.68548064]
[1717368903094,2.5,3781.3,3781.2,3.16448064]
[1717368905495,2.5,3781.3,3781.2,3.7149887]
[1717368906682,2.5,3781.3,3781.2,0.04082064]
[1717368906900,2.5,3781.3,3781.2,0.51982064]
[1717368907094,2.5,3781.3,3781.2,0.479]
[1717368907333,2.5,3781.3,3781.2,0.51932411]
[1717368908494,2.5,3781.3,3781.2,2.97642411]
[1717368908697,2.5,3781.3,3781.2,3.27406652]
[1717368913420,2.5,3781.3,3781.2,0.04032411]
[1717368915000,2.5,3781.3,3780.7,3.12394]
[1717368915200,2.5,3781.3,3780.8,0.03985923]
[1717368915551,2.5,3781.3,3781.0,0.479]
[1717368915859,2.5,3781.3,3781.1,0.03999912]
[1717368916201,2.5,3781.3,3780.3,5.07702]
[1717368916550,5.1446,3781.3,3780.5,0.479]
[1717368916848,5.1446,3781.3,3780.7,0.479]
[1717368917639,5.1446,3781.3,3780.8,0.0401255]
[1717368921039,2.6446,3781.3,3780.8,0.0401255]
[1717368922346,2.4301,3781.2,3780.8,0.0401255]
[1717368925955,2.64474,3781.1,3780.8,0.0401255]
[1717368926252,4.90127,3780.9,3780.3,0.479]
[1717368926414,4.90127,3780.9,3780.0,2.3537]
[1717368926616,4.90127,3780.9,3780.3,0.479]
[1717368926849,4.90127,3780.9,3780.5,0.479]
[1717368929428,2.64487,3780.9,3780.5,0.479]
[1717368929626,2.64487,3780.9,3780.7,0.479]
[1717368930157,2.64487,3780.9,3780.6,0.479]
[1717368930334,2.64487,3780.9,3780.8,0.04067164]
[1717368930532,2.64487,3780.9,3780.6,0.479]
[1717368931047,2.64487,3780.9,3780.7,0.04067164]
[1717368934174,2.3656,3780.8,3780.7,0.04067164]
[1717368934351,2.3656,3780.8,3780.3,0.479]
[1717368934859,2.3656,3780.8,3780.4,0.04067164]
[1717368938975,2.4918,3781.1,3780.5,0.479]
[1717368939271,2.4918,3781.1,3780.6,0.04082514]
[1717368939775,2.4918,3781.1,3780.5,0.479]
[1717368939945,2.4918,3781.1,3780.7,0.04082514]
[1717368940144,2.4918,3781.1,3780.5,0.479]
[1717368940471,2.4918,3781.1,3780.5,0.82307332]
[1717368940672,2.4918,3781.1,3780.6,0.04082514]
[1717368941182,2.4918,3781.1,3780.5,0.82307332]
[1717368941682,2.4918,3781.1,3780.6,0.04089738]
[1717368942030,2.4918,3781.1,3780.5,0.82307332]
[1717368942239,2.4918,3781.1,3780.6,0.04089738]
[1717368942434,9.92467,3781.2,3780.5,3.28247332]
[1717368942657,9.92467,3781.2,3780.7,0.479]
[1717368942973,9.92467,3781.2,3780.6,0.63366771]
[1717368942974,2.462,3781.1,3780.6,1.07177033]
[1717368943284,9.92467,3781.2,3780.6,3.53117033]
[1717368943481,2.4484,3781.1,3780.7,0.04089738]
[1717368943966,2.4484,3781.1,3780.8,0.04089738]
[1717368944168,2.4484,3781.1,3780.4,0.479]
[1717368944407,0.5717774,3781.0,3780.4,0.479]
[1717368944705,2.4484,3781.1,3780.5,0.35333138]
[1717368946961,0.57177124,3781.0,3780.5,0.35333138]
[1717368947680,3.21663124,3781.0,3780.5,0.04089738]
[1717368948010,0.57179282,3780.9,3780.3,0.479]
[1717368948209,0.57179282,3780.9,3780.6,0.04089738]
[1717368948365,0.57179282,3780.9,3780.3,0.479]
[1717368948566,0.57179282,3780.9,3780.7,0.04089738]
[1717368948766,0.57179282,3780.9,3780.3,0.479]
[1717368949083,2.64486,3781.0,3780.3,0.479]
[1717368949293,2.64486,3781.0,3780.4,0.04089738]
[1717368950671,0.57178493,3780.9,3780.4,0.04089738]
[1717368952538,2.64495,3780.8,3780.4,0.04089738]
[1717368961735,5.09314,3781.1,3780.4,0.35742512]
[1717368961937,0.5717685,3781.0,3780.4,2.57552774]
[1717368962329,0.5717685,3781.0,3780.5,0.51994317]
[1717368962533,2.64474,3781.1,3780.7,0.479]
[1717368962844,2.64474,3781.1,3780.5,0.479]
[1717368963051,2.64474,3781.1,3780.6,0.56997677]
[1717368963245,2.64474,3781.1,3780.7,0.04094317]
[1717368963784,2.64474,3781.1,3780.5,0.479]
[1717368963938,2.64474,3781.1,3780.8,0.04094317]
[1717368964138,2.64474,3781.1,3780.5,0.479]
[1717368964339,2.64474,3781.1,3780.6,0.56997677]
[1717368964877,2.64474,3781.1,3780.7,0.04094317]
[1717368965376,2.64474,3781.1,3780.5,0.479]
[1717368965591,2.64474,3781.1,3780.8,0.04082127]
[1717368965737,2.64474,3781.1,3780.5,0.479]
[1717368965930,2.64474,3781.1,3780.9,0.04082127]
[1717368966128,2.64474,3781.1,3780.5,0.479]
[1717368966369,2.64474,3781.1,3781.0,0.04082127]
[1717368966568,2.64474,3781.1,3780.5,0.479]
[1717368966772,2.456,3781.3,3781.0,0.04082127]
[1717368966945,2.64452,3781.5,3780.9,0.479]
[1717368966946,0.57173388,3781.2,3780.9,0.479]
[1717368967286,2.2921,3781.2,3780.7,0.479]
[1717368967578,2.2921,3781.2,3780.8,0.04082127]
[1717368967937,0.57174131,3781.1,3780.5,3.12409]
[1717368968648,0.57174131,3781.1,3780.6,0.04082127]
[1717368969044,0.57174131,3781.1,3780.7,0.479]
[1717368969273,0.57174131,3781.1,3780.7,0.51982127]
[1717368969449,2.2921,3781.2,3780.7,0.51982127]
[1717368970041,0.57174462,3781.1,3780.7,0.51982127]
[1717368970442,2.2921,3781.2,3780.7,0.51982127]
[1717368970938,0.57174816,3781.1,3780.7,0.51982127]
[1717368971367,0.57174816,3781.2,3780.8,2.3028]
[1717368971756,2.64459,3781.3,3780.8,2.3028]
[1717368975066,7.28,3781.6,3781.0,0.479]
[1717368975889,2.64436,3781.7,3781.0,0.479]
[1717368976180,2.64436,3781.7,3781.0,1.04883311]
[1717368976581,2.64436,3781.7,3781.1,2.2579]
[1717368979679,7.28,3782.0,3781.2,2.6446]
[1717368979880,7.28,3782.0,3781.2,0.479]
[1717368979881,3.21582719,3781.9,3781.2,0.479]
[1717368980066,2.64418,3781.9,3781.2,0.479]
[1717368980474,0.57166011,3781.8,3781.2,0.479]
[1717368980672,0.57166011,3781.8,3781.1,2.2579]
[1717368981068,0.57166011,3781.8,3781.2,0.04038788]
[1717368981476,0.57166011,3781.8,3781.1,2.2579]
[1717368981646,2.64418,3781.9,3781.2,0.04038788]
[1717368981970,0.57167398,3781.8,3781.1,2.2579]
[1717368982383,2.64418,3781.9,3781.1,2.2579]
[1717368982982,0.57167849,3781.8,3781.1,2.2579]
[1717368983555,2.64418,3781.9,3781.1,2.2579]
[1717368984002,4.62981781,3781.9,3781.1,2.2579]
[1717368988165,4.62981781,3781.9,3781.2,0.00585817]
[1717368989393,2.64418,3781.9,3781.2,0.48485817]
[1717368991317,2.64432,3781.7,3781.2,0.48485817]
[1717368993903,2.64432,3781.7,3781.2,0.00585817]
[1717368998451,2.64432,3781.7,3781.2,0.48485817]
[1717368998608,2.64432,3781.7,3781.3,0.27427582]
[1717368999848,9.92411,3782.0,3781.3,0.27427582]
[1717369000033,0.57162598,3781.9,3781.3,0.27427582]
[1717369002843,9.92411,3782.0,3781.3,0.27427582]
[1717369003018,0.57161873,3781.9,3781.4,2.7702]
[1717369003217,0.57161873,3781.9,3781.5,0.3050334]
[1717369008160,2.64411,3782.0,3781.5,0.3050334]
[1717369013251,2.64411,3782.0,3781.4,2.7702]
[1717369024492,2.6439,3782.3,3781.6,0.479]
[1717369024678,0.57159,3782.2,3781.7,2.2568]
[1717369027621,0.57157853,3782.2,3781.7,2.2568]
[1717369028786,0.57157557,3782.2,3781.7,2.2568]
[1717369030695,0.57157557,3782.2,3781.8,0.479]
[1717369031224,0.57157557,3782.2,3782.0,0.479]
[1717369031422,2.6439,3782.3,3782.0,0.479]
[1717369032225,5.1437,3782.6,3782.1,2.2615]
[1717369032395,0.57155037,3782.5,3782.1,2.2615]
[1717369033696,0.57155037,3782.5,3782.1,2.53555]
[1717369035154,5.1437,3782.6,3782.4,0.479]
[1717369035155,2.5,3782.6,3782.4,0.479]
[1717369035323,2.5,3782.6,3782.1,2.53555]
[1717369035324,2.5,3782.6,3782.5,2.442]
[1717369035528,2.5,3782.6,3782.3,0.479]
[1717369035839,2.5,3782.6,3782.2,5.08596]
[1717369035840,2.5,3782.6,3782.4,0.62333225]
[1717369038665,2.5,3782.6,3782.4,0.03943125]
[1717369039066,2.5,3782.6,3782.1,0.75305]
[1717369039265,2.5,3782.6,3782.5,0.03943125]
[1717369039468,2.5,3782.6,3782.1,0.75305]
[1717369039670,2.5,3782.6,3782.5,0.03943125]
[1717369039830,2.5,3782.6,3782.1,0.75305]
[1717369040034,2.5,3782.6,3782.5,0.03943125]
[1717369040230,2.979,3782.6,3781.3,2.3299]
[1717369040571,0.479,3782.0,3781.3,2.3299]
[1717369040739,0.479,3782.2,3781.3,2.3299]
[1717369040923,0.479,3782.2,3781.4,0.28147582]
[1717369041129,0.479,3782.2,3781.5,0.03932293]
[1717369041439,2.64396,3782.2,3781.5,0.03932293]
[1717369044762,2.64396,3782.2,3781.5,0.51832293]
[1717369044943,2.64396,3782.2,3781.6,2.3243]
[1717369045150,2.64396,3782.2,3781.8,0.479]
[1717369045349,2.64396,3782.2,3781.9,0.039535]
[1717369045587,2.64396,3782.2,3781.7,0.52896088]
[1717369046186,2.64396,3782.2,3781.8,0.039535]
[1717369046521,9.78,3782.6,3781.1,2.3243]
[1717369046522,2.64419,3781.9,3781.1,2.3243]
[1717369046678,2.64419,3781.9,3781.3,0.479]
[1717369047776,2.64419,3781.9,3781.3,0.47314183]
[1717369049711,2.64419,3781.9,3781.5,0.479]
[1717369050488,4.99764,3782.3,3781.7,0.479]
[1717369051014,2.64394,3782.3,3781.6,2.2901]
[1717369051312,2.64394,3782.3,3781.6,2.831469]
[1717369056710,2.3514,3782.5,3781.6,2.831469]
[1717369056920,2.3514,3782.5,3781.7,0.479]
[1717369057118,2.3514,3782.5,3781.9,0.479]
[1717369057853,2.3514,3782.5,3781.7,0.479]
[1717369058017,2.3514,3782.5,3781.7,1.0744849]
[1717369058508,12.42368,3782.6,3781.9,0.479]
[1717369058721,0.57155614,3782.5,3782.3,2.3343]
[1717369058920,2.5,3782.6,3782.2,0.479]
[1717369059246,2.5,3782.6,3782.2,0.76033]
[1717369059455,2.5,3782.6,3782.2,0.28133]
[1717369060598,2.5,3782.6,3782.3,0.03982826]
[1717369065575,2.5,3782.6,3782.4,2.9541]
[1717369065777,2.5,3782.6,3782.5,0.59192183]
[1717369066274,2.5,3782.6,3782.5,0.63134852]
[1717369084920,2.3616,3783.0,3782.5,0.63134852]
[1717369085118,2.3616,3783.0,3782.5,0.03942669]
[1717369085311,2.3616,3783.0,3782.4,0.479]
[1717369087652,7.28,3783.1,3782.5,2.3297]
[1717369087820,7.28,3783.1,3782.9,0.479]
[1717369088022,2.3341,3783.0,3782.7,0.479]
[1717369090514,2.3341,3783.0,3782.8,0.03921916]
[1717369090839,2.3341,3783.0,3782.7,0.479]
[1717369091152,2.3341,3783.0,3782.9,0.03921916]
[1717369091349,2.3341,3783.0,3782.7,0.479]
[1717369091711,2.3341,3783.0,3782.8,0.03921916]
[1717369092156,2.3341,3783.0,3782.7,0.479]
[1717369092521,2.3341,3783.0,3782.8,0.03921916]
[1717369092938,2.3341,3783.0,3782.7,0.479]
[1717369093312,2.3341,3783.0,3782.8,0.03911993]
[1717369093728,2.3341,3783.0,3782.7,0.479]
[1717369094053,2.3341,3783.0,3782.8,0.03911993]
[1717369094347,2.3341,3783.0,3782.7,0.479]
[1717369094651,2.3341,3783.0,3782.8,0.03911993]
[1717369094852,2.3341,3783.0,3782.5,0.479]
[1717369095063,2.3341,3783.0,3782.6,0.35139693]
[1717369097560,2.3341,3783.0,3782.6,2.99502693]
[1717369097760,2.3341,3783.0,3782.7,0.479]
[1717369098223,2.3341,3783.0,3782.8,0.03911993]
[1717369098424,2.3341,3783.0,3782.7,0.479]
[1717369098623,2.3341,3783.0,3782.8,0.03911993]
[1717369098823,2.3341,3783.0,3782.7,0.479]
[1717369099024,2.3341,3783.0,3782.8,0.03911993]
[1717369099357,2.3341,3783.0,3782.7,0.479]
[1717369099560,2.3341,3783.0,3782.9,0.03911993]
[1717369099760,2.3341,3783.0,3782.7,0.479]
[1717369099966,2.3341,3783.0,3782.9,0.03911993]
[1717369100176,2.3341,3783.0,3782.7,0.479]
[1717369100374,2.3341,3783.0,3782.9,0.03911993]
[1717369100529,2.3341,3783.0,3782.7,0.479]
[1717369100730,2.3341,3783.0,3782.9,0.03911993]
[1717369100930,2.3341,3783.0,3782.7,0.479]
[1717369101130,2.3341,3783.0,3782.9,0.03911993]
[1717369101333,2.3341,3783.0,3782.7,0.479]
[1717369101871,2.3341,3783.0,3782.8,0.03911993]
[1717369102170,2.3341,3783.0,3782.7,0.479]
[1717369102425,2.3341,3783.0,3782.9,0.03911993]
[1717369102714,2.3341,3783.0,3782.8,0.03911993]
[1717369103011,2.3341,3783.0,3782.7,0.479]
[1717369103212,2.3341,3783.0,3782.9,0.03911993]
[1717369103599,2.3341,3783.0,3782.7,0.479]
[1717369103815,2.3341,3783.0,3782.9,0.03911993]
[1717369104118,2.3341,3783.0,3782.8,0.03911993]
[1717369104274,2.3341,3783.0,3782.6,2.64363]
[1717369104612,2.3341,3783.0,3782.9,0.03911993]
[1717369104798,2.3341,3783.0,3782.6,2.64363]
[1717369105114,2.3341,3783.0,3782.7,0.03911993]
[1717369105716,2.3341,3783.0,3782.8,0.03911993]
[1717369106083,2.3341,3783.0,3782.6,2.64363]
[1717369106414,2.3341,3783.0,3782.9,0.03911993]
[1717369106612,2.3341,3783.0,3782.6,2.64363]
[1717369106912,2.3341,3783.0,3782.7,0.03907033]
[1717369107072,2.3341,3783.0,3782.6,2.64363]
[1717369107272,2.3341,3783.0,3782.8,0.03907033]
[1717369107507,2.3341,3783.0,3782.6,2.64363]
[1717369107715,2.3341,3783.0,3782.9,0.03907033]
[1717369107903,2.3341,3783.0,3782.6,2.64363]
[1717369108104,2.3341,3783.0,3782.9,0.03907033]
[1717369108277,2.3341,3783.0,3782.6,2.64363]
[1717369108481,2.3341,3783.0,3782.7,0.03907033]
[1717369108719,2.3341,3783.0,3782.6,2.64363]
[1717369108880,2.3341,3783.0,3782.8,0.03907033]
[1717369109078,2.3341,3783.0,3782.6,2.64363]
[1717369109300,2.3341,3783.0,3782.7,0.03907033]
[1717369109527,2.3341,3783.0,3782.6,2.64363]
[1717369109681,2.3341,3783.0,3782.8,0.03907033]
[1717369109898,2.3341,3783.0,3782.6,2.64363]
[1717369110099,2.3341,3783.0,3782.7,0.03907033]
[1717369110326,2.3341,3783.0,3782.6,2.955893]
[1717369110513,2.3341,3783.0,3782.8,0.03907033]
[1717369110714,2.3341,3783.0,3782.6,2.64363]
[1717369110917,2.3341,3783.0,3782.7,0.03907033]
[1717369111234,2.3341,3783.0,3782.6,2.64363]
[1717369111435,2.3341,3783.0,3782.6,2.955893]
[1717369111638,2.2909,3783.4,3782.6,2.955893]
[1717369111943,2.2909,3783.4,3782.6,2.64363]
[1717369112307,2.2909,3783.4,3782.8,2.64353]
[1717369114039,2.64321,3783.3,3782.4,2.64376]
[1717369114207,2.2644,3783.1,3782.4,2.64376]
[1717369114600,2.2644,3783.1,3782.5,0.03903711]
[1717369120905,4.90779,3783.1,3782.5,0.03903711]
[1717369121252,2.2574,3783.0,3782.5,0.03903711]
[1717369124051,2.254,3782.7,3782.5,0.03903711]
[1717369124444,2.254,3782.7,3782.0,2.64403]
[1717369124749,2.3987,3782.4,3781.7,2.64429]
[1717369124949,2.3987,3782.4,3782.1,0.03764731]
[1717369125149,0.57158464,3782.3,3781.7,2.64429]
[1717369125314,2.3987,3782.4,3781.7,2.64429]
[1717369126650,2.4873,3782.2,3781.4,2.64452]
[1717369126829,2.4873,3782.2,3781.4,3.62008782]
[1717369127025,2.4873,3782.2,3781.5,0.03764731]
[1717369127751,2.4873,3781.9,3781.5,0.03764731]
[1717369128052,2.4873,3781.9,3781.2,0.00585817]
[1717369128217,2.4873,3781.9,3781.2,0.49805999]
[1717369128423,2.4873,3781.9,3781.3,0.03764731]
[1717369129052,2.4873,3781.9,3781.3,0.51664731]
[1717369133971,2.4873,3781.9,3781.3,0.03764731]
[1717369135526,2.4873,3781.9,3781.3,0.51664731]
[1717369136765,2.4873,3781.9,3781.3,0.88259404]
[1717369137270,2.6441,3782.0,3781.7,0.479]
[1717369137571,4.832,3782.3,3781.8,0.03855409]
[1717369137927,4.832,3782.3,3781.7,0.479]
[1717369138131,4.832,3782.3,3781.8,0.03855409]
[1717369138371,4.832,3782.3,3781.5,0.479]
[1717369138672,4.832,3782.3,3781.9,0.03855409]
[1717369138839,5.627487,3782.3,3781.5,0.479]
[1717369139027,4.832,3782.3,3782.0,0.03855409]
[1717369139232,4.832,3782.3,3781.7,0.479]
[1717369139460,4.832,3782.3,3781.8,0.03855409]
[1717369139790,4.832,3782.3,3781.7,0.479]
[1717369139991,4.832,3782.3,3781.9,0.03855409]
[1717369140140,4.832,3782.3,3781.7,0.479]
[1717369140442,4.832,3782.3,3781.8,0.03855409]
[1717369140642,4.832,3782.3,3781.7,0.479]
[1717369140978,4.832,3782.3,3781.8,0.03855409]
[1717369141274,2.5,3782.3,3781.9,0.479]
[1717369141783,2.5,3782.3,3782.0,0.03855409]
[1717369142084,2.5,3782.3,3781.7,0.479]
[1717369142371,2.5,3782.3,3781.8,0.35088609]
[1717369142531,2.5,3782.3,3781.9,3.12316]
[1717369142737,2.5,3782.3,3782.0,2.3845]
[1717369142980,2.5,3782.3,3782.1,0.03855409]
[1717369143475,2.5,3782.3,3782.1,0.479]
[1717369143784,2.5,3782.3,3782.2,0.03855409]
[1717369144333,2.5,3782.3,3781.9,2.64416]
[1717369144570,2.5,3782.3,3782.0,0.03855409]
[1717369146890,2.5,3782.3,3782.0,0.51755409]
[1717369157057,2.5,3782.3,3782.2,0.479]
[1717369157378,2.5,3782.3,3782.2,1.06156864]
[1717369167179,2.5,3782.3,3782.2,1.61156864]
[1717369174009,2.5,3782.3,3782.2,0.58256864]
[1717369174210,2.5,3782.3,3782.2,0.03822023]
[1717369181098,2.5,3782.3,3782.2,0.51722023]
[1717369181494,2.5,3782.3,3782.2,0.03822023]
[1717369181691,2.5,3782.3,3782.2,0.51722023]
[1717369184194,2.5,3782.3,3782.2,2.77512023]
[1717369184537,2.5,3782.3,3782.2,3.31703525]
[1717369189398,2.5,3782.3,3782.2,3.86703525]
[1717369193015,2.5,3782.3,3782.2,1.60913525]
[1717369196237,7.28,3782.8,3782.2,1.60913525]
[1717369196406,7.28,3782.8,3782.7,0.479]
[1717369196609,2.3483,3782.9,3782.7,0.479]
[1717369196808,2.3483,3782.9,3782.7,0.51641397]
[1717369197425,2.3483,3782.9,3782.7,3.16002397]
[1717369199538,2.2735,3783.4,3783.0,2.64339]
[1717369199704,2.2735,3783.4,3783.1,0.479]
[1717369202149,2.2735,3783.4,3783.2,2.64326]
[1717369202351,2.2735,3783.4,3783.3,0.479]
[1717369202533,2.3126,3783.9,3783.3,0.479]
[1717369202737,3.786118,3783.9,3783.5,0.479]
[1717369203538,2.3126,3783.9,3783.5,0.479]
[1717369204324,2.3126,3783.9,3783.2,2.64326]
[1717369204564,2.3126,3783.9,3783.2,3.12226]
[1717369206850,2.3126,3783.9,3783.5,2.64304]
[1717369207037,2.3126,3783.9,3783.1,2.64326]
[1717369207248,2.2946,3783.8,3783.1,3.12226]
[1717369210976,2.3358,3783.3,3782.4,2.64375]
[1717369211125,2.3358,3783.3,3782.5,0.479]
[1717369211726,2.3358,3783.3,3782.5,0.791275]
[1717369211933,2.3358,3783.3,3782.7,0.479]
[1717369215321,2.3358,3783.3,3783.1,0.479]
[1717369215526,2.3358,3783.3,3782.8,2.64353]
[1717369215681,2.3358,3783.3,3783.0,0.479]
[1717369216017,2.3358,3783.3,3782.8,3.12253]
[1717369216521,2.3358,3783.3,3782.4,2.64376]
[1717369216690,2.3358,3783.3,3782.5,0.479]
[1717369217414,2.3358,3783.3,3782.7,0.479]
[1717369217618,2.258,3783.2,3782.7,0.479]
[1717369224438,7.28,3783.6,3783.0,2.64336]
[1717369224585,2.2626,3783.5,3782.7,2.6436]